bitfinex-derivatives/quotes_ETHF0:USTF0_20241231
["timestamp","ask_amount","ask_price","bid_price","bid_amount"]
[1735643786380,2.29202115,3393.0,3392.9,46.07451803]
[1735643787086,1.22510327,3393.1,3393.0,0.29518]
[1735643787286,1.22510327,3393.1,3393.0,2.48520803]
[1735643788684,3.47568663,3393.4,3393.3,0.29515]
[1735643788885,3.47568663,3393.4,3393.3,3.50295]
[1735643791189,3.47568663,3393.5,3393.4,0.29514]
[1735643791387,3.47568663,3393.5,3393.4,1.33916803]
[1735643792689,4.63424884,3393.6,3393.5,0.29513]
[1735643792887,4.63424884,3393.6,3393.5,1.33915803]
[1735643799393,4.63424884,3393.6,3393.5,42.13915803]
[1735643800095,3.47515125,3393.7,3393.6,0.29512]
[1735643800293,3.47515125,3393.7,3393.6,4.54694803]
[1735643801791,3.47515125,3393.8,3393.7,0.29512]
[1735643803397,4.89855125,3393.9,3393.6,4.25182803]
[1735643803697,4.89855125,3393.9,3393.8,1.33913803]
[1735643805896,1.4234,3393.9,3393.8,1.33913803]
[1735643807297,0.87258062,3394.0,3393.9,0.2951]
[1735643808901,0.37258062,3394.0,3393.9,0.2951]
[1735643809102,2.1549,3394.6,3394.5,0.29505]
[1735643809103,6.78914884,3394.6,3394.5,0.29505]
[1735643809303,6.78914884,3394.6,3394.5,4.54687803]
[1735643810206,2.1549,3394.6,3394.5,4.54687803]
[1735643817502,2.1549,3394.6,3394.5,45.34687803]
[1735643818809,2.1549,3394.6,3394.5,4.54687803]
[1735643824704,2.1549,3394.6,3394.5,45.34687803]
[1735643825509,2.1549,3394.6,3394.5,3.50285]
[1735643825712,2.1549,3394.6,3394.5,1.04402803]
[1735643825913,2.1549,3394.6,3394.5,1.33907803]
[1735643826507,2.1549,3394.6,3394.1,40.8]
[1735643826714,3.2078,3394.5,3394.3,0.29506]
[1735643827020,0.29505,3394.4,3394.1,1.04402803]
[1735643827407,0.29509,3394.0,3393.6,0.29512]
[1735643827611,0.7042,3393.9,3393.8,0.2951]
[1735643828822,0.7042,3393.9,3393.8,2.66994608]
[1735643829113,1.382,3393.9,3393.8,2.66994608]
[1735643830225,2.0981,3393.9,3393.8,2.66994608]
[1735643830717,2.0981,3393.9,3393.7,40.8]
[1735643830922,2.0981,3393.9,3393.8,0.29511]
[1735643832218,7.17522192,3393.9,3393.8,0.29511]
[1735643834022,7.17522192,3393.9,3393.4,40.8]
[1735643834220,0.29511,3393.8,3393.4,0.29514]
[1735643834422,7.17522192,3393.9,3393.4,0.29514]
[1735643834423,0.29512,3393.7,3393.4,0.29514]
[1735643834917,0.29513,3393.6,3393.4,0.29514]
[1735643835123,3.50293,3393.6,3393.4,0.29514]
[1735643835921,3.2078,3393.6,3393.2,2.37484608]
[1735643836119,3.2078,3393.6,3393.5,0.29513]
[1735643837223,7.95586904,3393.6,3393.5,0.29513]
[1735643838325,0.29514,3393.5,3393.4,0.29514]
[1735643838523,0.29513,3393.5,3393.3,0.29514]
[1735643838722,8.28099144,3393.6,3393.3,0.29514]
[1735643839025,8.28099144,3393.6,3393.5,0.29513]
[1735643839026,8.57612144,3393.6,3393.5,0.29513]
[1735643839227,8.57612144,3393.6,3393.4,0.29514]
[1735643839427,8.57612144,3393.6,3393.0,3.94575]
[1735643839616,8.57612144,3393.6,3393.5,0.29513]
[1735643840021,3.50293,3393.6,3393.5,0.29513]
[1735643840728,3.2078,3393.6,3393.5,0.29513]
[1735643840932,3.50292,3393.6,3393.5,0.29513]
[1735643841429,8.25020524,3393.6,3393.5,0.29513]
[1735643841728,8.63618524,3393.6,3393.5,0.29513]
[1735643841929,8.93130524,3393.6,3393.5,0.29513]
[1735643842726,8.63618524,3393.6,3393.5,0.29513]
[1735643843027,4.33182896,3393.6,3393.5,0.29513]
[1735643843632,4.62694896,3393.6,3393.5,0.29513]
[1735643844124,8.81228769,3393.6,3393.5,0.29513]
[1735643845039,8.51716769,3393.6,3393.5,0.29513]
[1735643845238,8.81228769,3393.6,3393.5,0.29513]
[1735643845634,9.25521665,3393.6,3393.5,0.29513]
[1735643851044,4.62694896,3393.6,3393.5,0.29513]
[1735643852245,9.25521665,3393.6,3393.5,0.29513]
[1735643853643,4.62694896,3393.6,3393.5,0.29513]
[1735643858847,9.25521665,3393.6,3393.5,0.29513]
[1735643865255,4.62694896,3393.6,3393.5,0.29513]
[1735643866959,4.18402,3393.6,3393.5,0.29513]
[1735643868152,14.72434091,3393.6,3393.5,0.29513]
[1735643870450,0.29515,3393.5,3393.4,0.29514]
[1735643872556,11.94368442,3393.5,3393.4,0.29514]
[1735643873857,18.90098202,3393.5,3393.4,0.29514]
[1735643875348,11.94368442,3393.5,3393.4,0.29514]
[1735643877054,0.29515,3393.5,3393.4,0.29514]
[1735643878560,0.29515,3393.5,3393.4,1.33928478]
[1735643878756,11.94368442,3393.5,3393.4,1.33928478]
[1735643880560,20.06527048,3393.5,3393.4,1.33928478]
[1735643883067,11.94368442,3393.5,3393.4,1.33928478]
[1735643884371,11.64853442,3393.5,3393.2,1.04414478]
[1735643884665,11.64853442,3393.5,3392.8,4.59771836]
[1735643884870,0.29518,3393.1,3393.0,0.29517]
[1735643885274,2.15406,3393.4,3392.8,5.31101836]
[1735643885460,0.29519,3392.9,3392.8,5.60620836]
[1735643885764,0.29519,3392.9,3392.8,5.31101836]
[1735643885971,2.44499,3392.9,3392.8,4.89290836]
[1735643886170,0.29519,3392.8,3392.7,0.2952]
[1735643886559,0.29519,3392.8,3392.7,1.33934478]
[1735643887169,2.44499,3392.9,3392.7,1.33934478]
[1735643887574,5.04269986,3392.8,3392.7,1.33934478]
[1735643888065,5.04269986,3392.8,3392.7,1.04414478]
[1735643888960,4.74750986,3392.8,3392.5,1.04414478]
[1735643889271,4.74750986,3392.8,3392.6,0.29521]
[1735643889272,0.29521,3392.7,3392.6,0.29521]
[1735643890468,0.2952,3392.8,3392.5,1.04414478]
[1735643890764,0.29523,3392.4,3392.2,1.73204]
[1735643890970,1.69924,3392.3,3392.2,0.722]
[1735643891172,1.404,3392.3,3392.2,1.01725]
[1735643891365,1.69924,3392.3,3392.2,1.01725]
[1735643891672,0.6964,3392.3,3392.2,1.01725]
[1735643891872,0.6964,3392.3,3392.2,0.722]
[1735643892075,0.29525,3392.2,3392.1,1.33939478]
[1735643892260,0.7076,3392.2,3391.9,5.34711836]
[1735643892465,1.00285,3392.2,3392.0,1.33940478]
[1735643892671,0.7076,3392.2,3392.1,0.29525]
[1735643892972,11.25553498,3392.3,3392.2,0.29525]
[1735643893173,11.25553498,3392.3,3392.2,1.33939478]
[1735643895171,11.25553498,3392.3,3392.2,0.29525]
[1735643895371,11.55077498,3392.3,3392.2,1.33939478]
[1735643895865,11.25553498,3392.3,3392.2,1.33939478]
[1735643896771,10.55913498,3392.3,3392.2,1.33939478]
[1735643896973,0.443066,3392.3,3392.2,1.33939478]
[1735643898172,4.63429694,3392.3,3392.2,1.33939478]
[1735643899368,3.47501385,3392.4,3392.3,0.29524]
[1735643900769,3.47501385,3392.4,3392.2,4.59771836]
[1735643900966,3.47501385,3392.4,3392.3,0.29524]
[1735643902665,6.68281385,3392.5,3392.4,0.29523]
[1735643903970,3.2078,3392.5,3392.4,0.29523]
[1735643904177,3.50302,3392.5,3392.4,0.29523]
[1735643905473,3.2078,3392.5,3392.2,1.04414478]
[1735643905679,0.29524,3392.4,3392.3,0.29523]
[1735643906570,3.76799664,3392.4,3392.3,0.29523]
[1735643909182,0.29524,3392.4,3392.3,0.29523]
[1735643916790,0.29524,3392.4,3392.3,1.33937478]
[1735643917587,3.2078,3392.5,3392.3,1.33937478]
[1735643917792,0.29523,3392.4,3392.3,1.33937478]
[1735643917991,3.2078,3392.5,3392.4,0.29523]
[1735643918494,3.2078,3392.5,3392.4,1.04553]
[1735643919490,3.2078,3392.5,3392.4,0.29523]
[1735643920692,3.2078,3392.5,3392.4,1.04553]
[1735643920897,3.2078,3392.5,3392.4,1.75833]
[1735643921494,3.2078,3392.5,3392.4,2.89833]
[1735643921691,3.2078,3392.9,3392.8,0.29519]
[1735643922184,3.2078,3392.9,3392.5,40.8]
[1735643922389,0.2952,3392.8,3392.7,0.2952]
[1735643922597,1.0397,3392.8,3392.7,0.2952]
[1735643923097,0.7445,3392.8,3392.7,0.2952]
[1735643923499,6.68427315,3392.9,3392.8,0.29519]
[1735643923700,3.9523,3392.9,3392.8,0.29519]
[1735643927706,3.2078,3392.9,3392.8,0.29519]
[1735643929004,1.04128,3393.0,3392.7,1.04414478]
[1735643929201,1.04128,3393.0,3392.9,1.33933478]
[1735643930205,0.7461,3393.0,3392.9,1.33933478]
[1735643930507,1.04128,3393.0,3392.9,1.33933478]
[1735643930705,0.7461,3393.0,3392.9,1.33933478]
[1735643931999,1.04128,3393.0,3392.9,1.33933478]
[1735643933907,0.7461,3393.0,3392.9,1.33933478]
[1735643934209,1.04128,3393.0,3392.9,1.33933478]
[1735643935212,0.7461,3393.0,3392.9,1.33933478]
[1735643935610,1.04128,3393.0,3392.9,1.33933478]
[1735643936412,0.7461,3393.0,3392.9,1.33933478]
[1735643936617,1.04128,3393.0,3392.9,1.33933478]
[1735643937717,0.7461,3393.0,3392.9,1.33933478]
[1735643943318,0.7461,3393.0,3392.9,0.29519]
[1735643943518,0.7461,3393.0,3392.9,1.33933478]
[1735643944221,0.7461,3393.0,3392.9,0.29519]
[1735643944520,0.7461,3393.0,3392.9,1.33933478]
[1735643947918,4.22474449,3393.0,3392.9,1.33933478]
[1735643949322,0.7461,3393.0,3392.9,1.33933478]
[1735643951721,7.84209694,3393.2,3393.1,0.29517]
[1735643951917,3.2078,3393.2,3393.1,1.33931478]
[1735643952320,3.2078,3393.2,3393.1,42.13931478]
[1735643952920,6.51492747,3393.4,3393.3,0.29515]
[1735643953224,6.51492747,3393.4,3393.3,1.33929478]
[1735643953424,0.7137,3393.4,3393.3,1.33929478]
[1735643953818,0.7137,3393.4,3393.1,1.04414478]
[1735643954011,0.29516,3393.2,3393.1,1.33930478]
[1735643954411,0.29515,3393.3,3393.2,0.29515]
[1735643955922,0.7137,3393.4,3393.1,1.04414478]
[1735643956122,0.7072,3393.2,3393.1,1.33931478]
[1735643958522,4.18550774,3393.2,3393.1,1.33931478]
[1735643959316,4.18550774,3393.2,3393.1,0.29517]
[1735643959519,1.00236,3393.2,3393.1,0.29517]
[1735643960720,0.7072,3393.2,3393.1,0.29517]
[1735643964128,5.3448627,3393.2,3393.1,0.29517]
[1735643964636,5.6400227,3393.2,3393.1,0.29517]
[1735643964823,5.3448627,3393.2,3393.1,0.29517]
[1735643965222,5.3448627,3393.2,3393.1,1.33931478]
[1735643967627,0.7072,3393.2,3393.1,1.33931478]
[1735643971737,0.7072,3393.2,3393.1,5.93703314]
[1735643972929,0.7072,3393.2,3393.1,1.33931478]
[1735643973929,0.7072,3393.2,3393.0,4.59771836]
[1735643974136,1.01987,3393.1,3393.0,4.59771836]
[1735643974439,0.29518,3393.0,3392.9,0.29518]
[1735643975543,0.7247,3393.1,3392.8,7.94831683]
[1735643975733,0.7023,3392.9,3392.8,5.98351918]
[1735643978539,5.6351527,3392.9,3392.8,1.33933478]
[1735643978742,5.3399627,3392.9,3392.8,1.33933478]
[1735643979546,0.7023,3392.9,3392.8,1.33933478]
[1735643979945,3.9101,3392.9,3392.7,4.6441844]
[1735643980134,1.02799,3392.8,3392.7,4.6441844]
[1735643980744,1.02799,3392.8,3392.7,4.9393844]
[1735643980941,1.02799,3392.8,3392.7,4.6441844]
[1735643981244,1.02799,3392.8,3392.7,0.2952]
[1735643981245,6.82922747,3392.8,3392.7,0.2952]
[1735643981836,6.53402747,3392.8,3392.5,1.04414478]
[1735643982041,0.2952,3392.7,3392.6,0.29521]
[1735643982240,0.7328,3392.8,3392.5,1.04414478]
[1735643982445,0.7328,3392.8,3392.7,0.2952]
[1735643984546,1.02799,3392.8,3392.7,0.2952]
[1735643987648,0.7328,3392.8,3392.7,0.2952]
[1735643988253,5.37434175,3392.8,3392.7,0.2952]
[1735643988554,5.66953175,3392.8,3392.7,0.2952]
[1735643990953,1.02799,3392.8,3392.7,0.2952]
[1735643995651,0.29521,3392.7,3392.6,0.29521]
[1735643996149,0.29521,3392.6,3392.5,0.29521]
[1735643996349,0.96361,3392.6,3392.5,0.29521]
[1735643996557,0.29523,3392.4,3392.3,1.33937478]
[1735643997150,0.29523,3392.4,3392.3,1.04414478]
[1735643997347,0.29525,3392.1,3392.0,5.6134444]
[1735643997552,0.29525,3392.1,3392.0,4.9394444]
[1735643998057,1.33939478,3392.1,3392.0,4.6441844]
[1735643998358,1.33939478,3392.1,3391.7,6.90417205]
[1735643998359,4.25194478,3392.1,3391.7,4.6441844]
[1735643998558,0.29528,3391.8,3391.7,4.6441844]
[1735643999055,1.01928,3391.8,3391.7,4.6441844]
[1735644000061,0.724,3391.8,3391.6,0.2953]
[1735644000265,4.18889,3391.7,3391.6,0.2953]
[1735644001353,4.93774478,3391.7,3391.3,1.04414478]
[1735644001550,0.29531,3391.5,3391.4,0.29531]
[1735644001750,0.29532,3391.4,3391.3,1.33946478]
[1735644001958,0.98822,3391.4,3391.3,1.33946478]
[1735644002155,0.98822,3391.4,3391.3,1.04414478]
[1735644002453,0.98822,3391.4,3391.2,0.29533]
[1735644002454,0.6929,3391.4,3391.2,0.29533]
[1735644002654,0.7069,3391.3,3391.2,0.29533]
[1735644002851,1.00222,3391.3,3391.2,0.29533]
[1735644003053,0.7069,3391.3,3391.2,0.29533]
[1735644003957,0.6929,3391.4,3391.3,0.29532]
[1735644004153,0.6929,3391.4,3391.3,1.33946478]
[1735644005061,3.00725371,3391.4,3391.3,0.29532]
[1735644005361,3.30257371,3391.4,3391.3,0.29532]
[1735644006355,3.00725371,3391.4,3391.3,0.29532]
[1735644006751,2.31435371,3391.4,3391.3,0.29532]
[1735644006955,2.31435371,3391.4,3391.3,0.98722]
[1735644007559,2.31435371,3391.5,3391.4,0.29532]
[1735644007759,2.31435371,3391.5,3391.4,1.33946478]
[1735644007963,2.31435371,3391.5,3391.4,2.04838663]
[1735644008260,2.31435371,3391.5,3391.4,42.84838663]
[1735644008963,3.2078,3391.6,3391.4,42.55306663]
[1735644009156,3.2078,3391.6,3391.5,0.29531]
[1735644009862,3.2078,3391.6,3391.5,0.33573185]
[1735644016163,2.02304996,3391.8,3391.7,0.29529]
[1735644016370,1.94360321,3391.8,3391.7,3.81796109]
[1735644016665,3.8595,3392.4,3392.0,0.29526]
[1735644016862,3.8595,3392.4,3392.0,0.33568185]
[1735644017172,3.2078,3392.4,3392.3,0.29524]
[1735644017964,3.2078,3392.4,3392.3,0.33566185]
[1735644018265,5.14862984,3392.7,3392.6,0.29521]
[1735644018266,1.3793,3392.7,3392.6,0.29521]
[1735644018566,1.3793,3392.7,3392.3,0.04042185]
[1735644018870,1.67451,3392.7,3392.5,0.29521]
[1735644019071,1.3793,3392.7,3392.6,0.33563185]
[1735644019569,4.85342984,3392.7,3392.6,0.33563185]
[1735644020470,5.14862984,3392.7,3392.6,0.04042185]
[1735644022868,5.14862984,3392.7,3392.6,0.33563185]
[1735644024269,1.6745,3392.7,3392.6,0.33563185]
[1735644027473,5.14707718,3392.7,3392.6,0.33563185]
[1735644035278,4.85187718,3392.7,3392.6,0.33563185]
[1735644036967,3.47257718,3392.8,3392.6,0.04042185]
[1735644037176,3.47257718,3392.8,3392.7,1.33999092]
[1735644037982,3.47257718,3392.8,3392.7,1.38041277]
[1735644038480,0.6664,3393.0,3392.7,1.08521277]
[1735644038680,0.6664,3393.0,3392.9,1.33998092]
[1735644039082,0.6664,3393.0,3392.9,1.38040277]
[1735644040381,0.6664,3393.0,3392.9,0.33561185]
[1735644042180,0.96158,3393.0,3392.9,0.33561185]
[1735644042777,0.6664,3393.0,3392.9,0.33561185]
[1735644043278,0.96158,3393.0,3392.9,0.33561185]
[1735644044988,0.96158,3393.0,3392.4,5.58382383]
[1735644044989,0.6664,3393.0,3392.4,3.2078]
[1735644045285,0.29522,3392.5,3392.4,3.50303]
[1735644045489,0.29522,3392.6,3392.4,3.50303]
[1735644045679,0.29522,3392.6,3392.5,0.29522]
[1735644046484,1.3588,3392.9,3392.6,0.29521]
[1735644046485,0.29521,3392.7,3392.6,0.29521]
[1735644046783,3.47257718,3392.8,3392.7,0.2952]
[1735644047486,1.65399,3392.9,3392.4,6.32189383]
[1735644047784,1.65399,3392.9,3392.8,0.29519]
[1735644048284,2.29889,3392.9,3392.8,0.29519]
[1735644050883,5.77146718,3392.9,3392.8,0.29519]
[1735644052088,5.50669,3392.9,3392.8,0.29519]
[1735644054282,10.14579584,3392.9,3392.8,0.29519]
[1735644057683,10.14579584,3392.9,3392.5,0.73805]
[1735644057891,0.29521,3392.7,3392.6,0.2952]
[1735644059896,4.63996155,3392.8,3392.1,12.10913823]
[1735644060097,0.29523,3392.5,3392.4,0.29521]
[1735644060493,5.37796155,3392.8,3392.1,8.5901144]
[1735644060799,0.98533,3392.4,3392.3,0.29523]
[1735644061198,2.36093,3392.4,3392.3,0.29523]
[1735644062296,2.0657,3392.4,3392.3,0.29523]
[1735644062497,2.36093,3392.4,3392.3,0.29523]
[1735644064001,2.0657,3392.4,3392.3,0.29523]
[1735644065496,6.70793591,3392.4,3392.3,0.29523]
[1735644068809,4.64223591,3392.4,3392.3,0.29523]
[1735644069501,4.64223591,3392.4,3392.2,0.1273]
[1735644069502,7.85003591,3392.5,3392.4,0.29523]
[1735644069702,4.64223591,3392.5,3392.4,2.67125383]
[1735644070600,3.48130834,3392.6,3392.4,5.58382383]
[1735644070805,3.48130834,3392.6,3392.5,2.67124383]
[1735644071003,3.48130834,3392.6,3392.5,2.88024383]
[1735644071809,3.2078,3392.9,3392.8,0.29519]
[1735644073206,2.0173,3393.0,3392.7,4.63948159]
[1735644073414,2.0173,3393.0,3392.9,0.29519]
[1735644075509,5.49860834,3393.0,3392.9,0.29519]
[1735644078608,2.0173,3393.0,3392.9,0.29519]
[1735644079715,5.49860834,3393.0,3392.9,0.29519]
[1735644081306,2.0173,3393.0,3392.9,0.29519]
[1735644084615,5.49654912,3393.0,3392.9,0.29519]
[1735644086715,5.49654912,3393.0,3392.9,41.09519]
[1735644087215,2.0173,3393.0,3392.9,41.09519]
[1735644088217,2.0173,3393.0,3392.9,0.29519]
[1735644088511,5.49654912,3393.0,3392.9,0.29519]
[1735644090209,5.49654912,3393.0,3392.9,1.3395997]
[1735644094209,2.0173,3393.0,3392.9,1.3395997]
[1735644096517,1.50115,3393.1,3393.0,0.29518]
[1735644098218,1.50115,3393.1,3393.0,2.67024945]
[1735644099615,1.50115,3393.1,3393.0,7.30973104]
[1735644100010,1e-08,3393.1,3393.0,12.30973104]
[1735644100920,1e-08,3393.1,3393.0,20.18231053]
[1735644101117,1.9657,3393.7,3393.0,19.88713053]
[1735644101322,1.9657,3393.7,3393.6,0.29512]
[1735644102729,1.9657,3393.7,3393.6,0.30749173]
[1735644106423,3.47924912,3394.2,3394.1,0.29508]
[1735644106619,3.47924912,3394.2,3394.1,3.81214945]
[1735644106823,3.47924912,3394.2,3394.1,3.82452118]
[1735644107020,3.47924912,3394.2,3394.1,44.83362118]
[1735644107826,1.3534,3394.5,3394.4,0.29505]
[1735644108825,1.3534,3394.5,3394.4,0.30742173]
[1735644112423,1.3534,3394.5,3394.4,5.89029118]
[1735644113322,1.3534,3394.5,3394.4,46.69029118]
[1735644114124,1.3534,3394.5,3394.4,0.30742173]
[1735644128534,1.3534,3394.5,3394.4,41.10742173]
[1735644131437,1.3534,3394.5,3394.4,0.01237173]
[1735644131736,0.29507,3394.2,3394.0,0.29508]
[1735644131936,0.6738,3394.1,3394.0,0.29508]
[1735644140244,0.6738,3394.1,3394.0,1.33861666]
[1735644144146,0.96888,3394.1,3394.0,1.04353666]
[1735644144344,0.29509,3394.0,3393.9,4.63158702]
[1735644144647,1.63559,3394.0,3393.9,2.52678702]
[1735644145546,1.3405,3394.0,3393.9,2.52678702]
[1735644145850,1.3405,3394.0,3393.9,1.04353666]
[1735644146249,1.3405,3394.0,3393.8,0.2951]
[1735644147053,6.27782591,3394.0,3393.8,0.2951]
[1735644147252,9.19053591,3394.0,3393.6,40.8]
[1735644147451,9.19053591,3394.0,3393.6,41.09512]
[1735644147653,0.2951,3393.9,3393.7,0.29511]
[1735644148461,4.93733591,3393.9,3393.7,0.29511]
[1735644148953,4.64223591,3393.9,3393.6,40.8]
[1735644149149,4.93733591,3393.9,3393.7,0.29511]
[1735644149551,4.64223591,3393.9,3393.8,0.29511]
[1735644150852,9.19053591,3394.0,3393.6,40.8]
[1735644151051,9.19053591,3394.0,3393.9,0.2951]
[1735644152650,4.5483,3394.0,3393.9,0.2951]
[1735644153751,8.02522525,3394.0,3393.9,0.2951]
[1735644156155,4.5483,3394.0,3393.9,0.2951]
[1735644156456,4.5483,3394.0,3393.9,0.53152576]
[1735644158156,4.5483,3394.0,3393.9,0.54651247]
[1735644159054,4.5483,3394.0,3393.9,0.60072546]
[1735644159453,3.8576,3394.0,3393.9,0.60072546]
[1735644159654,2.31771297,3394.1,3394.0,0.29509]
[1735644159854,1.35897858,3394.1,3394.0,0.29509]
[1735644160158,1.35897858,3394.1,3394.0,1.0275897]
[1735644160556,2.55570312,3394.2,3394.0,0.7324997]
[1735644160753,2.55570312,3394.2,3394.1,4.47586527]
[1735644161161,2.55570312,3394.2,3394.1,4.59978601]
[1735644161658,1.9831,3394.6,3394.5,0.29505]
[1735644162461,1.9831,3394.6,3394.5,0.41897074]
[1735644166065,1.9831,3394.6,3394.5,1.08197074]
[1735644169959,1.9831,3394.6,3394.5,0.95805]
[1735644170261,1.9831,3394.6,3394.5,2.18008923]
[1735644171561,0.6667,3394.6,3394.5,2.18008923]
[1735644174465,0.6667,3394.6,3394.5,2.23491685]
[1735644175673,0.6667,3394.6,3394.5,2.28974447]
[1735644176761,0.6667,3394.6,3394.5,2.32406558]
[1735644182266,0.6667,3394.6,3394.5,43.12406558]
[1735644182469,4.64223591,3395.2,3395.1,0.29499]
[1735644182671,4.64223591,3395.2,3395.1,1.66100558]
[1735644183375,4.64223591,3395.2,3395.1,1.70141159]
[1735644183873,5.19153591,3395.2,3395.1,1.70141159]
[1735644184073,0.5493,3395.2,3395.1,1.70141159]
[1735644184474,0.5493,3395.2,3395.1,1.40642159]
[1735644184671,0.84429,3395.2,3395.1,1.40642159]
[1735644185577,1.41989,3395.2,3395.1,1.40642159]
[1735644185776,1.41989,3395.2,3395.1,1.70141159]
[1735644186477,1.1249,3395.2,3395.1,1.70141159]
[1735644191776,4.64223591,3395.9,3395.8,0.29493]
[1735644191981,4.64223591,3395.9,3395.8,1.33822087]
[1735644192383,4.64223591,3395.9,3395.8,1.70135159]
[1735644193076,0.5715,3395.9,3395.8,1.70135159]
[1735644193381,0.5715,3395.9,3395.8,42.50135159]
[1735644196786,0.5715,3395.9,3395.8,2.74464246]
[1735644196985,0.5715,3395.9,3395.8,1.70135159]
[1735644197288,0.5715,3395.9,3395.8,42.50135159]
[1735644197787,0.5715,3395.9,3395.8,2.74464246]
[1735644198290,0.5715,3395.9,3395.8,43.54464246]
[1735644198486,0.5711,3396.4,3395.8,43.24971246]
[1735644198686,0.5711,3396.4,3396.3,1.33818087]
[1735644199584,0.5711,3396.4,3396.3,1.70131159]
[1735644200190,0.5711,3396.4,3396.3,0.65802072]
[1735644205487,0.5711,3396.4,3396.3,1.80202072]
[1735644206485,1.1374,3396.6,3396.3,1.80202072]
[1735644206691,1.1374,3396.6,3396.5,2.66588749]
[1735644207593,1.1374,3396.6,3396.5,3.02901821]
[1735644212193,0.5793,3396.6,3396.5,3.02901821]
[1735644213296,3.2078,3396.9,3396.5,2.73414821]
[1735644213493,3.2078,3396.9,3396.8,2.66586749]
[1735644214694,3.2078,3396.9,3396.8,3.02899821]
[1735644220200,3.2078,3396.9,3396.8,43.82899821]
[1735644222201,3.2078,3396.9,3396.8,42.49976099]
[1735644222499,1.1182,3397.0,3396.9,0.29484]
[1735644222700,1.1182,3397.0,3396.9,0.65797072]
[1735644236509,4.57779395,3397.0,3396.9,0.65797072]
[1735644237909,1.1182,3397.0,3396.9,0.65797072]
[1735644240111,5.76043591,3397.0,3396.9,0.65797072]
[1735644241504,1.1182,3397.0,3396.9,0.65797072]
[1735644246413,4.59174043,3397.0,3396.9,0.65797072]
[1735644248815,4.04444043,3397.0,3396.9,1.69975099]
[1735644249116,0.5709,3397.0,3396.9,1.69975099]
[1735644249314,4.64223591,3397.1,3397.0,0.29483]
[1735644249517,4.64223591,3397.1,3397.0,1.33661027]
[1735644249813,4.64223591,3397.1,3397.0,43.06744099]
[1735644250714,3.47834264,3397.2,3397.1,0.29482]
[1735644250903,3.47834264,3397.2,3397.1,1.33660027]
[1735644251804,6.27583591,3397.3,3397.1,1.40491099]
[1735644252011,6.27583591,3397.3,3397.2,0.29481]
[1735644252304,0.29481,3397.2,3397.1,0.36313072]
[1735644253915,0.29481,3397.2,3397.1,0.65795072]
[1735644254413,1.92841,3397.3,3397.1,0.65795072]
[1735644254813,1.92841,3397.3,3397.2,0.65794072]
[1735644256513,1.92841,3397.3,3397.2,0.36313072]
[1735644257019,1.92841,3397.3,3397.2,0.65794072]
[1735644259425,1.92841,3397.3,3397.2,1.69972099]
[1735644260116,1.6336,3397.3,3397.2,1.69972099]
[1735644269424,1.9284,3397.3,3397.2,1.69972099]
[1735644270329,1.93081102,3397.3,3397.2,1.69972099]
[1735644271123,1.93081102,3397.3,3397.2,0.36313072]
[1735644271324,2.97259129,3397.3,3397.2,0.36313072]
[1735644271624,2.97259129,3397.3,3396.8,4.62963834]
[1735644271625,0.29484,3396.9,3396.8,4.62963834]
[1735644271824,0.29485,3396.8,3396.7,2.91323834]
[1735644273020,0.29485,3396.8,3396.6,0.29486]
[1735644273021,3.2078,3396.9,3396.6,0.29486]
[1735644273326,0.29485,3396.7,3396.6,0.29486]
[1735644274823,0.29488,3396.6,3396.5,0.29487]
[1735644275019,1.37518,3396.6,3396.5,0.29487]
[1735644278327,7.16729067,3396.6,3396.5,0.29487]
[1735644279628,1.37518,3396.6,3396.5,0.29487]
[1735644279827,0.83588,3396.6,3396.5,0.29487]
[1735644284630,5.46621664,3396.6,3396.5,0.29487]
[1735644286842,8.67401664,3396.6,3396.5,0.29487]
[1735644287727,7.83813664,3396.6,3396.5,0.29487]
[1735644288033,8.13299664,3396.6,3396.5,0.29487]
[1735644290937,0.2949,3396.3,3396.2,0.29489]
[1735644291732,0.2949,3396.3,3396.2,0.83429]
[1735644292338,0.2949,3396.3,3396.2,1.87663302]
[1735644293640,0.2949,3396.3,3396.2,1.58174302]
[1735644294142,3.76650317,3396.3,3396.2,1.58174302]
[1735644294639,3.76650317,3396.3,3396.2,1.04234302]
[1735644295535,0.2949,3396.3,3396.2,1.04234302]
[1735644297937,0.2949,3396.3,3396.2,1.33724302]
[1735644299547,3.7672434,3396.3,3396.2,1.33724302]
[1735644304452,3.7672434,3396.3,3396.2,1.70604387]
[1735644304749,3.7672434,3396.3,3396.2,1.70603475]
[1735644306753,3.7672434,3396.3,3396.2,1.33724302]
[1735644306951,3.7672434,3396.3,3396.2,1.70603965]
[1735644307255,3.7672434,3396.3,3396.2,1.33724302]
[1735644307454,0.2949,3396.3,3396.2,1.70603958]
[1735644308860,5.70763664,3396.4,3396.2,1.41113958]
[1735644309050,6.00251664,3396.4,3396.3,0.29489]
[1735644311763,1.37218,3396.4,3396.3,0.29489]
[1735644312060,1.0773,3396.4,3396.1,1.04234302]
[1735644312355,1.37219,3396.4,3396.3,1.33723302]
[1735644313454,1.37219,3396.4,3396.3,1.04234302]
[1735644313658,0.29492,3396.1,3396.0,1.33725302]
[1735644313853,0.29492,3396.1,3396.0,1.7060737]
[1735644315157,0.2949,3396.2,3396.1,0.2949]
[1735644315354,0.2949,3396.2,3396.1,1.7060637]
[1735644315763,5.79211067,3396.3,3396.1,1.4111637]
[1735644315964,5.79211067,3396.3,3396.2,0.2949]
[1735644316166,6.08700067,3396.3,3396.2,0.2949]
[1735644316463,0.2949,3396.2,3396.1,1.33724302]
[1735644316663,0.2949,3396.2,3396.1,1.70604715]
[1735644317159,0.2949,3396.2,3396.1,1.33724302]
[1735644317765,0.2949,3396.2,3396.1,1.04234302]
[1735644317957,0.29491,3396.1,3396.0,0.29492]
[1735644318157,1.0773,3396.4,3396.0,1.41114905]
[1735644318359,0.29491,3396.2,3396.1,0.66370832]
[1735644319266,0.29491,3396.2,3396.1,0.6637072]
[1735644320168,0.29491,3396.2,3396.1,0.3688072]
[1735644320360,0.29491,3396.2,3396.1,0.6637172]
[1735644320665,0.29491,3396.1,3396.0,1.33725302]
[1735644320859,1.0773,3396.4,3396.0,1.41115203]
[1735644321065,0.29491,3396.1,3396.0,1.33725302]